bitfinex/quotes_BTCUSD_20230114
["timestamp","ask_amount","ask_price","bid_price","bid_amount"]
[1673729662010,0.829665,20848.0,20844.0,0.86243338]
[1673729662258,0.97690643,20848.0,20846.0,0.141]
[1673729662526,0.32621254,20847.0,20846.0,0.141]
[1673729663253,0.32621254,20847.0,20844.0,0.38268638]
[1673729663499,0.67621254,20847.0,20845.0,0.14]
[1673729663749,1.15590054,20847.0,20844.0,0.38268638]
[1673729663990,1.15690054,20847.0,20846.0,0.141]
[1673729664231,1.15590054,20847.0,20844.0,0.38268638]
[1673729664473,1.15590054,20847.0,20845.0,0.14]
[1673729664727,1.15690054,20847.0,20845.0,0.14]
[1673729664975,1.15590054,20847.0,20844.0,0.38268638]
[1673729665490,1.30314197,20847.0,20844.0,0.38268638]
[1673729665733,1.63658554,20847.0,20845.0,0.14]
[1673729666461,1.63558554,20847.0,20843.0,0.30728071]
[1673729666697,1.78282697,20847.0,20843.0,0.30728071]
[1673729666950,1.78382697,20847.0,20844.0,0.139]
[1673729667205,1.63658554,20847.0,20843.0,0.30728071]
[1673729667450,1.78482697,20847.0,20845.0,0.14]
[1673729667693,1.63658554,20847.0,20845.0,0.14]
[1673729667917,0.2704265,20846.0,20845.0,0.14]
[1673729668156,1.2298425,20846.0,20845.0,0.14]
[1673729668431,1.2298425,20846.0,20844.0,0.27885413]
[1673729668899,1.2298425,20846.0,20843.0,0.25176361]
[1673729669442,1.5798425,20846.0,20842.0,0.1148]
[1673729669690,1.72708393,20846.0,20842.0,0.1148]
[1673729670190,1.72808393,20846.0,20844.0,0.139]
[1673729670452,0.479754,20844.0,20842.0,0.1148]
[1673729670701,0.479754,20844.0,20842.0,0.2088]
[1673729670952,0.73279547,20844.0,20842.0,0.1148]
[1673729671196,0.33098084,20843.0,20842.0,0.1378]
[1673729672153,0.829751,20845.0,20843.0,0.28750981]
[1673729672398,0.35,20845.0,20843.0,0.59333576]
[1673729672652,0.35,20845.0,20843.0,1.07311076]
[1673729672913,0.35,20845.0,20844.0,0.32025]
[1673729673418,0.01,20845.0,20843.0,0.88238481]
[1673729673676,0.01,20845.0,20844.0,0.59882151]
[1673729674157,0.30319533,20847.0,20844.0,0.27857151]
[1673729674403,0.009,20845.0,20844.0,0.28557151]
[1673729675170,0.65319533,20847.0,20844.0,0.98627151]
[1673729675428,0.31219533,20847.0,20844.0,1.18399746]
[1673729675678,0.30319533,20847.0,20844.0,1.46602351]
[1673729675926,0.009,20845.0,20844.0,1.194452]
[1673729676183,0.30319533,20847.0,20844.0,1.187452]
[1673729676417,0.31219533,20847.0,20845.0,0.31888157]
[1673729677593,0.3998581,20848.0,20845.0,0.31888157]
[1673729677837,0.009,20847.0,20845.0,0.32888157]
[1673729680931,0.25897287,20847.0,20845.0,0.32888157]
[1673729686709,0.25897287,20847.0,20845.0,0.01]
[1673729687283,0.75241946,20847.0,20845.0,0.01]
[1673729687807,0.28711327,20846.0,20845.0,0.01]
[1673729688559,0.63711327,20846.0,20845.0,0.01]
[1673729689360,0.00010011,20845.0,20844.0,1.00299208]
[1673729690125,0.00010011,20845.0,20843.0,0.1151]
[1673729690374,1.2181087,20845.0,20841.0,0.25548013]
[1673729690624,0.29068802,20844.0,20841.0,0.25548013]
[1673729691116,0.77044802,20844.0,20841.0,0.25548013]
[1673729691376,0.62320659,20844.0,20841.0,0.25548013]
[1673729691621,0.62320659,20844.0,20841.0,0.094]
[1673729691871,0.62320659,20844.0,20840.0,0.74039878]
[1673729692114,0.28861786,20843.0,20841.0,0.094]
[1673729692628,0.78206445,20843.0,20841.0,0.094]
[1673729692886,0.63861786,20843.0,20840.0,0.97995021]
[1673729693141,0.78206445,20843.0,20840.0,0.97995021]
[1673729693388,0.35,20842.0,20840.0,0.97995021]
[1673729693628,0.35,20842.0,20840.0,0.98008951]
[1673729693877,0.35,20842.0,20840.0,1.12108951]
[1673729694372,0.3498968,20842.0,20840.0,0.97995021]
[1673729694631,0.3498968,20842.0,20841.0,0.293842]
[1673729695333,0.3498968,20842.0,20840.0,1.33466308]
[1673729695585,0.3508968,20842.0,20841.0,1.394996]
[1673729696084,0.00010011,20845.0,20842.0,0.001]
[1673729696342,0.00010011,20845.0,20843.0,0.691083]
[1673729696599,0.00010011,20845.0,20843.0,0.57991629]
[1673729696831,0.00010011,20845.0,20844.0,0.25937578]
[1673729697558,0.00010011,20845.0,20844.0,0.93277578]
[1673729698033,0.00010011,20845.0,20844.0,0.93977578]
[1673729698034,0.00910011,20845.0,20844.0,0.93977578]
[1673729700768,0.00910011,20845.0,20844.0,1.73977978]
[1673729702714,0.00910011,20845.0,20844.0,1.41952978]
[1673729705194,0.00910011,20845.0,20844.0,1.73977978]
[1673729705668,0.00910011,20845.0,20844.0,1.41952978]
[1673729708240,0.00910011,20845.0,20844.0,1.480404]
[1673729708477,0.00910011,20845.0,20844.0,2.074758]
[1673729708810,0.00910011,20845.0,20844.0,2.59829576]
[1673729709014,0.00910011,20845.0,20844.0,1.85600428]
[1673729709525,0.00910011,20845.0,20844.0,2.33575828]
[1673729710329,0.00910011,20845.0,20844.0,2.33606429]
[1673729712372,0.00910011,20845.0,20844.0,3.34708416]
[1673729712647,0.00910011,20845.0,20844.0,4.00248065]
[1673729712902,0.00910011,20845.0,20844.0,4.28779352]
[1673729713152,0.00910011,20845.0,20844.0,4.07380887]
[1673729713415,0.00010011,20845.0,20844.0,4.06680887]
[1673729713658,0.00010011,20845.0,20844.0,3.99544199]
[1673729713911,0.00010011,20845.0,20844.0,3.89544199]
[1673729714143,0.00110011,20845.0,20844.0,4.17608026]
[1673729714655,0.00210011,20845.0,20844.0,4.3150793]
[1673729714890,0.00210011,20845.0,20844.0,4.17244199]
[1673729715365,0.00010011,20845.0,20844.0,4.18075486]
[1673729715615,0.00010011,20845.0,20844.0,4.03797922]
[1673729716131,0.00010011,20845.0,20844.0,4.58357922]
[1673729716625,0.00110011,20845.0,20844.0,4.58357922]
[1673729716865,0.00110011,20845.0,20844.0,4.44104199]
[1673729717142,0.00210011,20845.0,20844.0,4.57904199]
[1673729717380,0.00010011,20845.0,20844.0,4.44104199]
[1673729717620,0.00010011,20845.0,20844.0,4.0238345]
[1673729717877,2.442e-05,20845.0,20844.0,3.80988851]
[1673729718357,0.00102442,20845.0,20844.0,3.94888851]
[1673729718634,2.442e-05,20845.0,20844.0,3.80988851]
[1673729718885,0.00102442,20845.0,20844.0,4.7195022]
[1673729719136,0.00102442,20845.0,20844.0,4.1618345]
[1673729719394,0.00202442,20845.0,20844.0,4.2998345]
[1673729719660,2.442e-05,20845.0,20844.0,3.80988851]
[1673729720156,2.442e-05,20845.0,20844.0,4.0238345]
[1673729720406,2.442e-05,20845.0,20844.0,3.80988851]
[1673729720654,2.442e-05,20845.0,20844.0,4.0238345]
[1673729720900,2.442e-05,20845.0,20844.0,3.80988851]
[1673729721400,0.14726585,20845.0,20844.0,2.61416401]
[1673729721652,2.442e-05,20845.0,20844.0,1.58881001]
[1673729721900,0.00102442,20845.0,20844.0,1.61780201]
[1673729722153,0.00102442,20845.0,20844.0,1.95955601]
[1673729722154,2.442e-05,20845.0,20844.0,1.95955601]
[1673729722413,0.00102442,20845.0,20844.0,2.09855601]
[1673729722662,2.442e-05,20845.0,20844.0,1.95955601]
[1673729722885,2.442e-05,20845.0,20844.0,2.09955601]
[1673729722886,0.00102442,20845.0,20844.0,2.09955601]
[1673729723170,2.442e-05,20845.0,20844.0,1.95955601]
[1673729723433,0.00102442,20845.0,20844.0,1.98545601]
[1673729723682,2.442e-05,20845.0,20844.0,1.84445601]
[1673729724957,2.442e-05,20845.0,20844.0,2.25955601]
[1673729725708,2.442e-05,20845.0,20844.0,2.78309377]
[1673729725968,2.442e-05,20845.0,20844.0,3.04068051]
[1673729726204,0.00102442,20845.0,20844.0,3.14068051]
[1673729726459,0.00102442,20845.0,20844.0,3.3546265]
[1673729726700,0.00102442,20845.0,20844.0,3.4946265]
[1673729726701,0.00202442,20845.0,20844.0,3.4946265]
[1673729726954,2.442e-05,20845.0,20844.0,3.3546265]
[1673729727202,0.00102442,20845.0,20844.0,4.19344863]
[1673729727437,2.442e-05,20845.0,20844.0,4.07501024]
[1673729727659,0.01145969,20850.0,20845.0,0.1]
[1673729727909,0.01145969,20850.0,20847.0,0.1151]
[1673729728148,0.01145969,20850.0,20848.0,0.932594]
[1673729728385,0.01145969,20850.0,20849.0,0.320169]
[1673729728629,0.01145969,20850.0,20849.0,1.279447]
[1673729729134,0.01245969,20850.0,20849.0,1.279447]
[1673729729374,0.01145969,20850.0,20849.0,1.279447]
[1673729729583,0.01145969,20850.0,20849.0,1.420447]
[1673729730439,0.01145969,20850.0,20849.0,1.67098501]
[1673729730881,0.01145969,20850.0,20849.0,1.420447]
[1673729731847,0.01145969,20850.0,20849.0,1.71188911]
[1673729732101,0.01145969,20850.0,20849.0,1.420447]
[1673729732351,0.01145969,20850.0,20849.0,1.75380464]
[1673729732594,0.01145969,20850.0,20849.0,1.420447]
[1673729733087,0.0398061,20850.0,20849.0,1.68189431]
[1673729734135,0.0398061,20850.0,20849.0,1.65811465]
[1673729734338,0.0398061,20850.0,20849.0,1.420447]
[1673729734591,0.0398061,20850.0,20849.0,1.68785986]
[1673729735875,0.0398061,20850.0,20849.0,1.61117295]
[1673729736127,0.0398061,20850.0,20849.0,1.420447]
[1673729736822,0.0398061,20850.0,20849.0,1.535547]
[1673729737509,0.7898061,20850.0,20849.0,1.535547]
[1673729739273,0.7898061,20850.0,20849.0,1.82126509]
[1673729741532,0.7898061,20850.0,20849.0,1.70616509]
[1673729741533,0.93704753,20850.0,20849.0,1.70616509]
[1673729741751,0.7898061,20850.0,20849.0,1.22652609]
[1673729742034,0.7898061,20850.0,20849.0,0.90635709]
[1673729743296,0.7898061,20850.0,20849.0,1.38599609]
[1673729743548,0.7898061,20850.0,20849.0,1.70624609]
[1673729746045,0.7898061,20850.0,20849.0,1.38599609]
[1673729746805,0.7898061,20850.0,20849.0,1.38630582]
[1673729747050,1.10086675,20850.0,20849.0,0.141]
[1673729747757,1.10086675,20850.0,20849.0,0.14130973]
[1673729748524,0.7898061,20850.0,20849.0,0.91007712]
[1673729749026,0.7898061,20850.0,20849.0,0.90998984]
[1673729749288,0.7898061,20850.0,20849.0,1.23023984]
[1673729749804,0.7898061,20850.0,20849.0,1.70987884]
[1673729755288,0.7898061,20850.0,20849.0,0.14091272]
[1673729755549,1.42451737,20850.0,20849.0,0.14091272]
[1673729756742,1.20931589,20850.0,20849.0,0.14091272]
[1673729759731,1.32431589,20850.0,20849.0,0.14091272]
[1673729760496,1.53951737,20850.0,20849.0,0.14091272]
[1673729761015,1.32431589,20850.0,20849.0,0.14091272]
[1673729761735,1.32407989,20850.0,20849.0,0.14091272]
[1673729763165,0.7895701,20850.0,20849.0,0.39309583]
[1673729764311,0.7895701,20850.0,20849.0,1.35237383]
[1673729764542,0.7895701,20850.0,20849.0,1.35199531]
[1673729764754,0.7895701,20850.0,20849.0,1.35237383]
[1673729766292,0.7895701,20850.0,20849.0,1.67262383]
[1673729766764,0.7895701,20850.0,20849.0,1.35237383]
[1673729767191,0.7895701,20850.0,20849.0,1.67262383]
[1673729768205,0.7895701,20850.0,20849.0,1.35237383]
[1673729770130,0.7895701,20850.0,20849.0,1.46637383]
[1673729770373,0.7895701,20850.0,20849.0,1.78662383]
[1673729776313,0.7895701,20850.0,20849.0,1.72554519]
[1673729776563,0.7895701,20850.0,20849.0,2.89389753]
[1673729777585,0.7895701,20850.0,20849.0,3.00924493]
[1673729778333,0.7895701,20850.0,20849.0,2.79539905]
[1673729778582,0.7895701,20850.0,20849.0,3.15401598]
[1673729778881,0.7895701,20850.0,20849.0,2.79539905]
[1673729779101,0.7895701,20850.0,20849.0,3.00916293]
[1673729779677,0.7895701,20850.0,20849.0,3.00915737]
[1673729779952,0.7895701,20850.0,20849.0,2.79539905]
[1673729780166,0.7895701,20850.0,20849.0,3.00918377]
[1673729780415,0.01195569,20851.0,20850.0,0.25462362]
[1673729780658,0.01195569,20851.0,20850.0,2.78985454]
[1673729781887,0.01195569,20851.0,20850.0,2.78385454]
[1673729782400,0.01195569,20851.0,20850.0,3.49372173]
[1673729782671,0.01195569,20851.0,20850.0,3.56622182]
[1673729782931,0.01195569,20851.0,20850.0,3.89638616]
[1673729783180,0.01195569,20851.0,20850.0,3.75129287]
[1673729783933,0.01195569,20851.0,20850.0,3.65729287]
[1673729784173,0.01195569,20851.0,20850.0,3.51098]
[1673729784675,0.01195569,20851.0,20850.0,3.79629287]
[1673729785172,0.01195569,20851.0,20850.0,4.17936667]
[1673729786464,0.01195569,20851.0,20850.0,4.17872667]
[1673729786928,0.01195569,20851.0,20850.0,4.17858027]
[1673729787427,0.01195569,20851.0,20850.0,3.68325593]
[1673729788185,0.01195569,20851.0,20850.0,3.46973229]
[1673729788691,0.01195569,20851.0,20850.0,2.50134562]
[1673729788941,0.01195569,20851.0,20850.0,2.40592611]
[1673729789202,0.01195569,20851.0,20850.0,1.71522011]
[1673729789445,0.01195569,20851.0,20850.0,1.23560411]
[1673729789908,0.01195569,20851.0,20850.0,1.57622011]
[1673729790211,0.01295569,20851.0,20850.0,2.03547011]
[1673729790464,0.01195569,20851.0,20850.0,1.89647011]
[1673729790714,0.01295569,20851.0,20850.0,1.99347011]
[1673729790970,0.01195569,20851.0,20850.0,1.89647011]
[1673729791187,0.01295569,20851.0,20850.0,2.03747011]
[1673729791454,0.01295569,20851.0,20850.0,1.89647011]
[1673729791713,0.01395569,20851.0,20850.0,1.99347011]
[1673729791971,0.01395569,20851.0,20850.0,1.51385411]
[1673729794524,0.01395569,20851.0,20850.0,0.82045411]
[1673729794770,0.01395569,20851.0,20850.0,0.50020411]
[1673729796306,0.01395569,20851.0,20850.0,0.25162362]
[1673729796740,0.31096924,20851.0,20850.0,0.25162362]
[1673729801065,0.01395569,20851.0,20850.0,0.25162362]
[1673729801839,0.01395569,20851.0,20850.0,0.73123962]
[1673729802584,0.01395569,20851.0,20850.0,1.05148962]
[1673729803104,0.01395569,20851.0,20850.0,1.38395471]
[1673729805552,0.01395569,20851.0,20850.0,0.58408871]
[1673729807846,0.01395569,20851.0,20850.0,0.25162362]
[1673729808315,0.34303653,20851.0,20850.0,0.25162362]
[1673729808562,0.34303653,20851.0,20850.0,0.19447239]
[1673729811619,0.01395569,20851.0,20850.0,0.19447239]
[1673729811865,0.01395569,20851.0,20850.0,0.43930077]
[1673729815777,0.01395569,20851.0,20850.0,0.91891677]
[1673729821042,0.01395569,20851.0,20850.0,1.39853277]
[1673729821778,0.01395569,20851.0,20850.0,0.91891677]
[1673729824239,0.01395569,20851.0,20850.0,0.43930077]
[1673729824727,0.01395569,20851.0,20850.0,0.91891677]
[1673729824977,0.01395569,20851.0,20850.0,1.39853277]
[1673729825240,0.01395569,20851.0,20850.0,1.71878277]
[1673729827256,0.01395569,20851.0,20850.0,1.7194555]
[1673729828675,0.01395569,20851.0,20850.0,1.47462712]
[1673729828912,0.01395569,20851.0,20850.0,1.77935307]
[1673729829188,0.01395569,20851.0,20850.0,3.61652285]
[1673729829419,0.01218648,20852.0,20851.0,1.37559437]
[1673729829672,0.01218648,20852.0,20851.0,3.71115044]
[1673729830164,0.01218648,20852.0,20851.0,3.46987277]
[1673729830921,0.01218648,20852.0,20851.0,3.55997755]
[1673729831413,0.01218648,20852.0,20851.0,4.44080766]
[1673729831657,0.01218648,20852.0,20851.0,4.5545694]
[1673729831910,0.01218648,20852.0,20851.0,4.19870546]
[1673729832393,0.01218648,20852.0,20851.0,4.05970546]
[1673729832635,0.01218648,20852.0,20851.0,4.19770546]
[1673729832899,0.01218648,20852.0,20851.0,4.55325704]
[1673729833658,0.01218648,20852.0,20851.0,4.41525704]
[1673729833871,0.01218648,20852.0,20851.0,4.55325704]
[1673729834118,0.01218648,20853.0,20852.0,0.20186301]
[1673729834356,0.01218648,20853.0,20852.0,4.25660482]
[1673729834602,0.01218648,20853.0,20852.0,4.11426884]
[1673729835058,0.01218648,20853.0,20852.0,4.57335822]
[1673729835550,0.01218648,20853.0,20852.0,4.99676884]
[1673729836818,0.01218648,20853.0,20852.0,4.71235822]
[1673729837078,0.01218648,20853.0,20852.0,4.71185822]
[1673729837702,0.01218648,20853.0,20852.0,4.53689517]
[1673729837951,0.01218648,20853.0,20852.0,3.93649405]
[1673729839329,0.01218648,20853.0,20852.0,3.794459]
[1673729839864,0.01218648,20853.0,20852.0,3.93649405]
[1673729841374,0.01218648,20853.0,20852.0,3.794459]
[1673729842833,0.01218648,20853.0,20852.0,3.93649405]
[1673729843829,0.01218648,20853.0,20852.0,3.794459]
[1673729844072,0.13109886,20859.0,20852.0,3.794459]
[1673729844073,0.01195212,20863.0,20853.0,0.01700701]
[1673729844361,0.04760365,20857.0,20854.0,2.20139376]
[1673729844615,0.14724143,20857.0,20855.0,0.93931514]
[1673729844866,0.14724143,20857.0,20855.0,0.28854993]
[1673729845119,0.1147,20860.0,20856.0,1.279186]
[1673729845364,0.24747258,20859.0,20857.0,0.210892]
[1673729845629,0.24747258,20859.0,20858.0,0.479432]
[1673729846642,0.24747258,20859.0,20858.0,0.570432]
[1673729847131,0.1147,20860.0,20858.0,1.31490937]
[1673729847902,0.27231633,20861.0,20858.0,1.31490937]
[1673729848156,0.27231633,20861.0,20858.0,1.22390937]
[1673729848606,0.12795483,20862.0,20858.0,1.41463532]
[1673729848855,0.01415483,20862.0,20858.0,1.52963532]
[1673729849105,0.01415483,20862.0,20859.0,0.32025]
[1673729849373,0.01415483,20862.0,20860.0,1.648963]
[1673729849619,0.01415483,20862.0,20860.0,1.438158]
[1673729849866,0.01415483,20862.0,20861.0,0.30058643]
[1673729850358,0.01415483,20862.0,20861.0,0.78003884]
[1673729850605,0.01415483,20862.0,20861.0,0.30067584]
[1673729851095,0.01415483,20862.0,20861.0,8.941e-05]
[1673729851351,0.12915483,20862.0,20861.0,0.006]
[1673729851596,0.24375483,20862.0,20861.0,0.006]
[1673729851843,0.72309483,20862.0,20861.0,0.006]
[1673729852379,1.20243483,20862.0,20861.0,0.006]
[1673729854341,1.48535089,20862.0,20861.0,0.006]
[1673729854803,1.20243483,20862.0,20861.0,0.006]
[1673729855042,1.50850899,20862.0,20861.0,0.006]
[1673729855306,1.20243483,20862.0,20861.0,0.006]
[1673729856136,1.5017479,20862.0,20861.0,0.006]
[1673729857150,1.20243483,20862.0,20861.0,0.006]
[1673729857415,1.20170971,20862.0,20861.0,0.006]
[1673729857660,1.46243062,20862.0,20861.0,0.006]
[1673729857907,1.66818794,20862.0,20861.0,0.006]
[1673729858463,1.52474135,20862.0,20861.0,0.006]
[1673729858650,1.66818794,20862.0,20861.0,0.006]
[1673729859115,0.56606135,20862.0,20861.0,0.10304]
[1673729859362,0.56606135,20862.0,20861.0,0.006]
[1673729860346,0.24302971,20862.0,20861.0,0.29376595]
[1673729860590,0.01342971,20862.0,20861.0,1.176766]
[1673729860832,0.48508028,20873.0,20861.0,1.68749412]
[1673729861127,1.24940907,20888.0,20886.0,2.34112611]
[1673729861392,1.24940907,20888.0,20876.0,0.46681905]
[1673729861393,1.01848039,20888.0,20878.0,0.49684756]
[1673729861643,0.96348039,20888.0,20887.0,0.115]
[1673729861894,0.28647441,20892.0,20887.0,0.115]
[1673729861895,0.00057654,20892.0,20889.0,0.73327389]
[1673729862153,0.59177823,20892.0,20889.0,0.7169119]
[1673729862681,0.1149,20890.0,20889.0,0.7169119]
[1673729862914,0.1149,20890.0,20889.0,0.53832334]
[1673729862915,0.82140169,20890.0,20889.0,0.53832334]
[1673729863196,0.1,20889.0,20888.0,1.13108857]
[1673729863425,0.04804664,20890.0,20888.0,1.13108857]
[1673729863696,0.04804664,20890.0,20880.0,0.04764342]
[1673729863697,0.1,20888.0,20880.0,0.04764342]
[1673729863940,0.1,20888.0,20876.0,0.76292689]
[1673729863941,0.1138,20884.0,20878.0,1.43657076]
[1673729864185,0.19072595,20883.0,20878.0,1.43657076]
[1673729864430,0.115,20886.0,20878.0,1.43657076]
[1673729864431,0.19072595,20882.0,20880.0,0.115]
[1673729864913,0.30572595,20882.0,20875.0,0.114]
[1673729865166,0.19072595,20881.0,20877.0,0.27877352]
[1673729865415,0.19072595,20881.0,20876.0,0.79878301]
[1673729865655,0.19072595,20880.0,20876.0,0.115]
[1673729865909,0.19072595,20880.0,20877.0,0.115]
[1673729866154,0.3,20886.0,20877.0,0.115]
[1673729866414,0.04937355,20882.0,20877.0,0.115]
[1673729866667,0.19072595,20882.0,20877.0,0.115]
[1673729867154,0.16256855,20883.0,20877.0,0.115]
[1673729867406,0.2392945,20883.0,20880.0,0.115]
[1673729867659,0.04856855,20883.0,20880.0,0.115]
[1673729867921,0.04856855,20883.0,20879.0,0.115]
[1673729868172,0.4149334,20885.0,20879.0,0.115]
[1673729868424,0.65556245,20885.0,20879.0,0.115]
[1673729868913,0.35556245,20885.0,20879.0,0.115]
[1673729871205,0.1143,20883.0,20877.0,0.115]
[1673729871459,0.30572595,20882.0,20876.0,0.115]
[1673729871707,0.19072595,20881.0,20877.0,0.41768838]
[1673729872458,0.05000702,20886.0,20881.0,0.57217784]
[1673729872715,0.26438246,20890.0,20883.0,1.066892]
[1673729872980,0.01693853,20892.0,20889.0,0.3443]
[1673729873225,0.01693853,20892.0,20890.0,0.7025]
[1673729873467,0.01693853,20892.0,20891.0,1.028325]
[1673729874227,0.115,20901.0,20891.0,1.62042669]
[1673729874500,0.19072595,20901.0,20892.0,0.335333]
[1673729874750,0.19072595,20900.0,20892.0,0.1143]
[1673729874964,0.19072595,20899.0,20892.0,0.1143]
[1673729875211,0.19072595,20898.0,20892.0,0.1143]
[1673729875444,0.19072595,20898.0,20894.0,0.115]
[1673729875707,0.19072595,20897.0,20894.0,0.115]
[1673729875956,0.115,20895.0,20890.0,0.98544828]
[1673729876219,0.115,20895.0,20893.0,0.04784754]
[1673729876449,0.115,20895.0,20890.0,0.69258969]
[1673729876690,0.415,20895.0,20890.0,0.69258969]
[1673729876940,0.11597625,20895.0,20891.0,0.31126893]
[1673729877187,0.00097625,20895.0,20891.0,0.31126893]
[1673729877446,0.00097625,20895.0,20892.0,0.215]
[1673729877690,0.00097625,20895.0,20891.0,0.32039282]
[1673729877936,0.00097625,20895.0,20891.0,0.4187264]
[1673729878186,0.00097625,20895.0,20891.0,0.3187264]
[1673729878691,0.00097625,20895.0,20890.0,1.10986129]
[1673729878943,0.1917022,20895.0,20890.0,1.10986129]
[1673729880957,0.1917022,20895.0,20890.0,0.4172716]
[1673729881472,0.1917022,20895.0,20891.0,0.7032]
[1673729881728,0.00097625,20895.0,20891.0,0.7032]
[1673729882268,0.77857,20896.0,20895.0,0.00195249]
[1673729882507,0.77956991,20896.0,20895.0,0.00195249]
[1673729882755,0.47857,20896.0,20895.0,0.00195249]
[1673729882994,0.77857,20896.0,20895.0,0.00195249]
[1673729883243,0.79803304,20896.0,20895.0,0.00195249]
[1673729884692,0.78803304,20896.0,20895.0,0.00195249]
[1673729885177,0.78803304,20896.0,20895.0,0.00177049]
[1673729886460,0.90303304,20896.0,20895.0,0.00177049]
[1673729886963,1.38159304,20896.0,20895.0,0.00177049]
[1673729888711,1.38159304,20896.0,20891.0,0.34497615]
[1673729888958,0.19072595,20895.0,20891.0,0.25820566]
[1673729889203,0.66930995,20895.0,20891.0,0.25820566]
[1673729890190,0.478584,20895.0,20891.0,0.25820566]
[1673729890456,0.66930995,20895.0,20891.0,0.25820566]
[1673729890698,1.14789295,20895.0,20890.0,1.28548]
[1673729890956,1.14789295,20895.0,20890.0,1.52810707]
[1673729891708,0.39384906,20895.0,20890.0,1.52810707]
[1673729892190,0.87243306,20895.0,20890.0,1.52810707]
[1673729892431,0.39384906,20895.0,20890.0,1.52810707]
[1673729892696,0.39384906,20895.0,20890.0,2.00680407]
[1673729893191,0.39384906,20895.0,20890.0,2.00180407]
[1673729894426,0.39384906,20895.0,20891.0,0.30052832]
[1673729894667,0.00977641,20894.0,20891.0,0.39052832]
[1673729894917,0.00977641,20894.0,20891.0,0.76920132]
[1673729895167,0.00977641,20894.0,20891.0,0.29052832]
[1673729895675,0.00977641,20894.0,20890.0,1.17048]
[1673729896205,0.20050236,20894.0,20890.0,1.17048]
[1673729896449,0.00977641,20894.0,20890.0,1.17048]
[1673729896941,0.20050236,20894.0,20890.0,1.49495787]
[1673729897215,0.00977641,20894.0,20891.0,0.2947338]
[1673729897978,0.48824878,20898.0,20891.0,0.957349]
[1673729898227,0.48824878,20898.0,20892.0,0.2273]
[1673729898228,0.67897473,20898.0,20892.0,0.2273]
[1673729898485,0.67897473,20898.0,20893.0,0.478614]
[1673729898734,0.00836345,20895.0,20892.0,0.1273]
[1673729898985,0.00834164,20896.0,20891.0,0.73093117]
[1673729898986,0.00882288,20894.0,20891.0,0.25225617]
[1673729899238,0.48628581,20895.0,20891.0,0.25225617]
[1673729899490,0.00770081,20895.0,20890.0,0.6918]
[1673729899739,0.19072595,20895.0,20892.0,0.29822771]
[1673729899982,0.00841604,20899.0,20894.0,0.1283]
[1673729900245,0.00803853,20898.0,20896.0,0.1273]
[1673729900491,0.00803853,20898.0,20897.0,0.478537]
[1673729901232,0.00948684,20900.0,20897.0,0.957074]
[1673729901488,0.00741199,20899.0,20897.0,0.957074]
[1673729901728,0.00730547,20901.0,20897.0,0.957074]
[1673729902000,0.49940306,20904.0,20897.0,0.957074]
[1673729902001,0.00799548,20902.0,20898.0,0.1283]
[1673729902305,0.47833,20907.0,20899.0,0.47720169]
[1673729902306,0.02114799,20907.0,20899.0,0.47720169]
[1673729902510,0.02114799,20907.0,20902.0,0.02398643]
[1673729902770,0.02114799,20907.0,20903.0,1.27490592]
[1673729902771,0.00752406,20907.0,20903.0,1.27490592]
[1673729903040,0.00565087,20907.0,20904.0,0.309631]
[1673729903290,0.00565087,20907.0,20902.0,0.02398643]
[1673729903291,0.79602764,20907.0,20902.0,0.02398643]
[1673729903555,0.19072595,20906.0,20902.0,0.02398643]
[1673729904054,0.47720169,20905.0,20902.0,0.02398643]
[1673729904312,0.47720169,20904.0,20902.0,0.02398643]
[1673729904601,1.25560169,20903.0,20902.0,0.02398643]
[1673729904859,0.1,20902.0,20892.0,0.24198496]
[1673729905097,0.1,20902.0,20894.0,0.334436]
[1673729905098,0.1277,20899.0,20894.0,0.334436]
[1673729905349,0.66792764,20898.0,20894.0,0.334436]
[1673729905601,0.66792764,20898.0,20893.0,0.7343]
[1673729905602,1.92501164,20897.0,20893.0,0.33365262]
[1673729905859,0.19072595,20896.0,20893.0,0.33365262]
[1673729906134,0.66929795,20896.0,20893.0,0.33365262]
[1673729906360,0.66929795,20896.0,20894.0,0.23828027]
[1673729906361,0.478572,20896.0,20894.0,0.23828027]
[1673729906611,1.25574369,20897.0,20891.0,0.7343]
[1673729906612,0.95574369,20897.0,20891.0,0.7343]
[1673729906863,0.19072595,20896.0,20893.0,0.478626]
[1673729907133,0.478456,20901.0,20894.0,0.32435462]
[1673729907134,0.478478,20900.0,20894.0,0.32435462]
[1673729907403,0.478478,20900.0,20894.0,0.3250848]
[1673729907404,0.478497,20899.0,20894.0,0.3250848]
[1673729907623,0.00501292,20898.0,20894.0,0.3250848]
[1673729908691,0.19072595,20898.0,20892.0,0.7454287]
[1673729908890,0.66292764,20897.0,20891.0,0.98436658]
[1673729909143,0.49072595,20896.0,20891.0,0.98436658]
[1673729909395,0.19072595,20895.0,20891.0,0.98436658]
[1673729909643,0.19072595,20895.0,20892.0,0.00073025]
[1673729909916,0.478589,20895.0,20892.0,0.00073025]
[1673729910675,0.00602592,20894.0,20892.0,0.00073025]
[1673729911914,0.00602592,20894.0,20893.0,0.95748854]
[1673729912902,0.48463192,20894.0,20893.0,0.95748854]
[1673729914147,0.96933195,20894.0,20893.0,0.40768066]
[1673729914404,1.37030769,20894.0,20888.0,0.59379883]
[1673729914648,0.49072595,20893.0,20888.0,0.35377739]
[1673729914906,1.14803795,20892.0,20888.0,0.41049983]
[1673729915422,0.00548065,20891.0,20888.0,0.1435772]
[1673729915985,0.478697,20890.0,20888.0,0.1435772]
[1673729916256,0.957394,20890.0,20888.0,0.1435772]
[1673729916965,0.957394,20890.0,20888.0,0.0035905]
[1673729917251,0.957394,20890.0,20888.0,0.1435772]
[1673729917497,0.957394,20890.0,20888.0,0.0035905]
[1673729918000,0.00586092,20889.0,20888.0,0.0035905]
[1673729918252,0.00611979,20891.0,20888.0,0.46980294]
[1673729918502,0.00611979,20891.0,20888.0,0.1180905]
[1673729918748,0.00611979,20891.0,20889.0,0.2685364]
[1673729918995,0.00611979,20891.0,20890.0,0.00073031]
[1673729919718,0.00611979,20891.0,20889.0,0.30027813]
[1673729921243,0.00611979,20891.0,20888.0,0.1180905]
[1673729921488,0.00611979,20891.0,20888.0,0.25057542]
[1673729921489,0.48479479,20891.0,20888.0,0.25057542]
[1673729921994,0.00111979,20891.0,20888.0,0.25057542]
[1673729922548,0.47867,20892.0,20888.0,0.25057542]
[1673729922766,0.957322,20892.0,20888.0,0.25057542]
[1673729924533,0.47867,20892.0,20889.0,0.00073035]
[1673729924781,0.47867,20892.0,20888.0,0.0035905]
[1673729925033,1.14804795,20892.0,20888.0,0.0035905]
[1673729925546,0.957322,20892.0,20888.0,0.0035905]
[1673729925797,1.14804795,20892.0,20888.0,0.0035905]